fUSD/lending_fUSD_20250916
["ID","MTS","AMOUNT","RATE_DAILY","PERIOD"]
[385843343,1758059479694,-400.0,0.00031232,6]
[385843344,1758059479703,-400.0,0.00031232,6]
[385843345,1758059479713,-400.0,0.00031232,6]
[385843346,1758059479723,-316.3579573,0.00031232,6]
[385843347,1758059479733,-627.06,0.00031232,6]
[385843348,1758059479743,-400.0,0.00031232,6]
[385843349,1758059479752,-400.0,0.00031232,6]
[385843350,1758059479762,-517.67479816,0.00031232,6]
[385843351,1758059479771,-404.88,0.00031232,6]
[385843352,1758059479781,-400.0,0.00031232,6]
[385843353,1758059479791,-400.0,0.00031232,6]
[385843354,1758059479801,-400.0,0.00031232,6]
[385843355,1758059479810,-597.91,0.00031232,6]
[385843356,1758059479820,-400.0,0.00031232,6]
[385843357,1758059479830,-400.0,0.00031232,6]
[385843358,1758059479839,-550.75,0.00031232,6]
[385843359,1758059479849,-482.27,0.00031232,6]
[385843360,1758059479859,-547.6281956,0.00031232,6]
[385843361,1758059479868,-412.10526645,0.00031232,6]
[385843362,1758059479878,-400.0,0.00031232,6]
[385843363,1758059479887,-400.0,0.00031232,6]
[385843364,1758059479897,-400.0,0.00031232,6]
[385843365,1758059479906,-489.33,0.00031232,6]
[385843366,1758059479916,-400.0,0.00031232,6]
[385843367,1758059479926,-400.0,0.00031232,6]
[385843368,1758059479935,-400.0,0.00031232,6]
[385843369,1758059479944,-400.44,0.00031232,6]
[385843370,1758059479954,-400.0,0.00031232,6]
[385843371,1758059479963,-432.89,0.00031232,6]
[385843372,1758059479973,-1630.47,0.00031232,6]
[385843373,1758059479983,-411.70344601,0.00031232,6]
[385843374,1758059479993,-410.66621316,0.00031232,6]
[385843375,1758059480002,-400.0,0.00031232,6]
[385843376,1758059480013,-251.66113052,0.00031232,6]
[385843377,1758059480022,-400.0,0.00031232,6]
[385843378,1758059480032,-464.0,0.00031232,6]
[385843379,1758059480041,-400.0,0.00031232,6]
[385843380,1758059480051,-541.51,0.00031232,6]
[385843381,1758059480061,-400.0,0.00031232,6]
[385843382,1758059480071,-400.0,0.00031232,6]
[385843383,1758059480080,-400.0,0.00031232,6]
[385843384,1758059480090,-400.0,0.00031232,6]
[385843385,1758059480099,-400.0,0.00031232,6]
[385843386,1758059480109,-400.0,0.00031232,6]
[385843387,1758059480118,-431.13,0.00031232,6]
[385843388,1758059480128,-666.3,0.00031232,6]
[385843389,1758059480137,-400.0,0.00031232,6]
[385843390,1758059480147,-400.0,0.00031232,6]
[385843391,1758059480156,-400.0,0.00031232,6]
[385843392,1758059480165,-400.0,0.00031232,6]
[385843393,1758059480175,-400.0,0.00031232,6]
[385843394,1758059480184,-547.93,0.00031232,6]
[385843395,1758059480193,-400.0,0.00031232,6]
[385843396,1758059480203,-400.0,0.00031232,6]
[385843397,1758059480213,-400.0,0.00031232,6]
[385843398,1758059480222,-474.55,0.00031232,6]
[385843399,1758059480232,-681.13,0.00031232,6]
[385843400,1758059480242,-445.76,0.00031232,6]
[385843401,1758059480251,-400.0,0.00031232,6]
[385843402,1758059480261,-400.0,0.00031232,6]
[385843403,1758059480271,-520.69,0.00031232,6]
[385843404,1758059480280,-400.0,0.00031232,6]
[385843405,1758059480443,-402.9,0.00031232,6]
[385843406,1758059480463,-400.0,0.00031232,6]
[385843407,1758059480473,-400.0,0.00031232,6]
[385843408,1758059480482,-400.0,0.00031232,6]
[385843409,1758059480492,-400.0,0.00031232,6]
[385843410,1758059480502,-400.0,0.00031232,6]
[385843411,1758059480511,-400.0,0.00031232,6]
[385843412,1758059480520,-400.0,0.00031232,6]
[385843413,1758059480530,-400.0,0.00031232,6]
[385843414,1758059480539,-400.0,0.00031232,6]
[385843415,1758059480549,-520.75,0.00031232,6]
[385843416,1758059480558,-438.72,0.00031232,6]
[385843417,1758059480568,-930.22,0.00031232,6]
[385843418,1758059480577,-400.0,0.00031232,6]
[385843419,1758059480587,-400.0,0.00031232,6]
[385843420,1758059480596,-400.0,0.00031232,6]
[385843421,1758059480605,-691.69,0.00031232,6]
[385843422,1758059480615,-541.46,0.00031232,6]
[385843423,1758059480624,-400.0,0.00031232,6]
[385843424,1758059480633,-400.0,0.00031232,6]
[385843425,1758059480642,-400.0,0.00031232,6]
[385843426,1758059480652,-400.0,0.00031232,6]
[385843427,1758059480661,-400.0,0.00031232,6]
[385843428,1758059480670,-400.0,0.00031232,6]
[385843429,1758059480679,-840.93,0.00031232,6]
[385843430,1758059480688,-400.0,0.00031232,6]
[385843431,1758059480698,-400.0,0.00031232,6]
[385843432,1758059480706,-400.0,0.00031232,6]
[385843433,1758059480721,-400.0,0.00031232,6]
[385843434,1758059480730,-531.61,0.00031232,6]
[385843435,1758059480740,-400.0,0.00031232,6]
[385843436,1758059480754,-400.0,0.00031232,6]
[385843437,1758059480764,-400.0,0.00031232,6]
[385843438,1758059480773,-400.0,0.00031232,6]
[385843439,1758059480782,-400.0,0.00031232,6]
[385843440,1758059480791,-528.41,0.00031232,6]
[385843441,1758059480800,-400.0,0.00031232,6]
[385843442,1758059480809,-3105.74,0.00031232,6]
[385843443,1758059480818,-400.0,0.00031232,6]
[385843444,1758059480828,-593.33,0.00031232,6]
[385843445,1758059480837,-400.0,0.00031232,6]
[385843446,1758059480846,-400.0,0.00031232,6]
[385843447,1758059480855,-400.0,0.00031232,6]
[385843448,1758059480865,-360.1617921,0.00031232,6]
[385843449,1758059480874,-530.57,0.00031232,6]
[385843450,1758059480883,-400.0,0.00031232,6]
[385843451,1758059480892,-801.13,0.00031232,6]
[385843452,1758059480901,-400.0,0.00031232,6]
[385843453,1758059480910,-400.0,0.00031232,6]
[385843454,1758059480919,-400.0,0.00031232,6]
[385843455,1758059480928,-400.0,0.00031232,6]
[385843456,1758059480937,-400.0,0.00031232,6]
[385843457,1758059480946,-400.0,0.00031232,6]
[385843458,1758059480955,-400.0,0.00031232,6]
[385843459,1758059480964,-400.0,0.00031232,6]
[385843460,1758059480973,-400.0,0.00031232,6]
[385843461,1758059480982,-720.72,0.00031232,6]
[385843462,1758059480991,-400.0,0.00031232,6]
[385843463,1758059481000,-400.0,0.00031232,6]
[385843464,1758059481010,-400.0,0.00031232,6]
[385843465,1758059481019,-283.83416807,0.00031232,6]
[385843466,1758059481028,-450.36,0.00031232,6]
[385843467,1758059481037,-400.0,0.00031232,6]
[385843468,1758059481046,-400.0,0.00031232,6]
[385843469,1758059481055,-400.0,0.00031232,6]
[385843470,1758059481064,-400.0,0.00031232,6]
[385843471,1758059481074,-400.0,0.00031232,6]
[385843472,1758059481083,-400.0,0.00031232,6]
[385843473,1758059481092,-400.0,0.00031232,6]
[385843474,1758059481102,-400.0,0.00031232,6]
[385843475,1758059481111,-400.0,0.00031232,6]
[385843476,1758059481120,-400.0,0.00031232,6]
[385843477,1758059481130,-400.0,0.00031232,6]
[385843478,1758059481139,-523.38127508,0.00031232,6]
[385843479,1758059481148,-400.0,0.00031232,6]
[385843480,1758059481158,-400.0,0.00031232,6]
[385843481,1758059481167,-400.0,0.00031232,6]
[385843482,1758059481182,-265.56770305,0.00031232,6]
[385843483,1758059481192,-400.0,0.00031232,6]
[385843484,1758059481201,-455.66,0.00031232,6]
[385843485,1758059481210,-400.0,0.00031232,6]
[385843486,1758059481219,-400.0,0.00031232,6]
[385843487,1758059481228,-400.0,0.00031232,6]
[385843488,1758059481237,-400.0,0.00031232,6]
[385843489,1758059481246,-400.0,0.00031232,6]
[385843490,1758059481255,-400.0,0.00031232,6]
[385843491,1758059481264,-400.0,0.00031232,6]
[385843492,1758059481273,-400.0,0.00031232,6]
[385843493,1758059481282,-452.15,0.00031232,6]
[385843494,1758059481291,-400.0,0.00031232,6]
[385843495,1758059481304,-599.86,0.00031232,6]
[385843496,1758059481313,-1299.74,0.00031232,6]
[385843497,1758059481322,-572.67,0.00031232,6]
[385843498,1758059481331,-400.0,0.00031232,6]
[385843499,1758059481341,-400.0,0.00031232,6]
[385843500,1758059481350,-400.0,0.00031232,6]
[385843501,1758059481361,-422.38,0.00031232,6]
[385843502,1758059481370,-400.0,0.00031232,6]
[385843503,1758059481379,-400.0,0.00031232,6]
[385843504,1758059481391,-400.0,0.00031232,6]
[385843505,1758059481401,-404.16,0.00031232,6]
[385843506,1758059481412,-400.0,0.00031232,6]
[385843507,1758059481423,-400.0,0.00031232,6]
[385843508,1758059481434,-400.0,0.00031232,6]
[385843509,1758059481444,-400.0,0.00031232,6]
[385843510,1758059481454,-400.0,0.00031232,6]
[385843511,1758059481464,-924.76,0.00031232,6]
[385843512,1758059481473,-400.0,0.00031232,6]
[385843513,1758059481482,-400.0,0.00031232,6]
[385843514,1758059481490,-273.35076684,0.00031232,6]
[385843515,1758059481500,-1289.24,0.00031232,6]
[385843516,1758059481510,-400.0,0.00031232,6]
[385843517,1758059481519,-400.0,0.00031232,6]
[385843518,1758059481528,-400.0,0.00031232,6]
[385843519,1758059481537,-400.0,0.00031232,6]
[385843520,1758059481547,-400.0,0.00031232,6]
[385843521,1758059481557,-400.0,0.00031232,6]
[385843522,1758059481566,-400.0,0.00031232,6]
[385843523,1758059481576,-400.0,0.00031232,6]
[385843524,1758059481587,-554.69,0.00031232,6]
[385843525,1758059481597,-437.86715473,0.00031232,6]
[385843526,1758059481607,-548.45919097,0.00031232,6]
[385843527,1758059481618,-799.13,0.00031232,6]
[385843528,1758059481629,-467.79,0.00031232,6]
[385843529,1758059481639,-943.71,0.00031232,6]
[385843530,1758059481650,-400.0,0.00031232,6]
[385843531,1758059481661,-617.84,0.00031232,6]
[385843532,1758059481671,-400.0,0.00031232,6]
[385843533,1758059481681,-400.0,0.00031232,6]
[385843534,1758059481691,-562.81,0.00031232,6]
[385843535,1758059481701,-400.0,0.00031232,6]
[385843536,1758059481711,-400.0,0.00031232,6]
[385843537,1758059481720,-1554.92,0.00031232,6]
[385843538,1758059481731,-400.0,0.00031232,6]
[385843539,1758059481740,-472.52,0.00031232,6]
[385843540,1758059481749,-400.0,0.00031232,6]
[385843541,1758059481760,-400.0,0.00031232,6]
[385843542,1758059481770,-400.0,0.00031232,6]
[385843543,1758059481779,-502.44,0.00031232,6]
[385843544,1758059481789,-400.0,0.00031232,6]
[385843545,1758059481798,-2454.26,0.00031232,6]
[385843546,1758059481807,-400.0,0.00031232,6]
[385843547,1758059481819,-400.0,0.00031232,6]
[385843548,1758059481829,-814.45,0.00031232,6]
[385843549,1758059481838,-400.0,0.00031232,6]
[385843550,1758059481848,-400.0,0.00031232,6]
[385843551,1758059481859,-400.0,0.00031232,6]
[385843552,1758059481868,-400.0,0.00031232,6]
[385843553,1758059481878,-220.76,0.00031232,6]
[385843554,1758059481889,-2151.75,0.00031232,6]
[385843555,1758059481900,-581.21,0.00031232,6]
[385843556,1758059481909,-400.0,0.00031232,6]
[385843557,1758059481920,-400.0,0.00031232,6]
[385843558,1758059481929,-400.0,0.00031232,6]
[385843559,1758059481938,-400.0,0.00031232,6]
[385843560,1758059481948,-400.0,0.00031232,6]
[385843561,1758059481959,-400.0,0.00031232,6]
[385843562,1758059481969,-400.0,0.00031232,6]
[385843563,1758059481980,-400.0,0.00031232,6]
[385843564,1758059481989,-400.0,0.00031232,6]
[385843565,1758059481999,-590.85,0.00031232,6]
[385843566,1758059482008,-400.0,0.00031232,6]
[385843567,1758059482018,-576.61,0.00031232,6]
[385843568,1758059482027,-400.0,0.00031232,6]
[385843569,1758059482037,-400.0,0.00031232,6]
[385843570,1758059482046,-400.0,0.00031232,6]
[385843571,1758059482055,-400.0,0.00031232,6]
[385843572,1758059482064,-616.64,0.00031232,6]
[385843573,1758059482073,-400.0,0.00031232,6]
[385843574,1758059482082,-400.0,0.00031232,6]
[385843575,1758059482091,-426.57,0.00031232,6]
[385843576,1758059482100,-862.95,0.00031232,6]
[385843577,1758059482109,-400.0,0.00031232,6]
[385843578,1758059482118,-400.0,0.00031232,6]
[385843579,1758059482128,-2554.31,0.00031232,6]
[385843580,1758059482137,-400.0,0.00031232,6]
[385843581,1758059482147,-695.75,0.00031232,6]
[385843582,1758059482158,-465.42,0.00031232,6]
[385843583,1758059482167,-400.0,0.00031232,6]
[385843584,1758059482177,-400.0,0.00031232,6]
[385843585,1758059482185,-528.3,0.00031232,6]
[385843586,1758059482194,-400.0,0.00031232,6]
[385843587,1758059482204,-400.0,0.00031232,6]
[385843588,1758059482213,-400.0,0.00031232,6]
[385843589,1758059482223,-629.46,0.00031232,6]
[385843590,1758059482232,-402.58,0.00031232,6]
[385843591,1758059482241,-760.02,0.00031232,6]
[385843592,1758059482251,-400.0,0.00031232,6]
[385843593,1758059482260,-400.0,0.00031232,6]
[385843594,1758059482270,-400.0,0.00031232,6]
[385843595,1758059482278,-400.0,0.00031232,6]
[385843596,1758059482288,-573.15,0.00031232,6]
[385843597,1758059482302,-219.53274672,0.00031232,6]
[385843598,1758059482311,-400.0,0.00031232,6]
[385843599,1758059482321,-400.0,0.00031232,6]
[385843600,1758059482330,-555.71,0.00031232,6]
[385843601,1758059482339,-400.0,0.00031232,6]
[385843602,1758059482348,-400.0,0.00031232,6]
[385843603,1758059482358,-400.0,0.00031232,6]
[385843604,1758059482367,-400.0,0.00031232,6]
[385843605,1758059482376,-479.18,0.00031232,6]
[385843606,1758059482387,-447.53,0.00031232,6]
[385843607,1758059482401,-418.11,0.00031232,6]
[385843608,1758059482410,-423.89,0.00031232,6]
[385843609,1758059482419,-450.0,0.00031232,6]
[385843610,1758059482428,-435.17,0.00031232,6]
[385843611,1758059482438,-400.0,0.00031232,6]
[385843612,1758059482447,-400.0,0.00031232,6]
[385843613,1758059482457,-400.0,0.00031232,6]
[385843614,1758059482467,-400.0,0.00031232,6]
[385843615,1758059482476,-483.62620726,0.00031232,6]
[385843616,1758059482486,-778.74,0.00031232,6]
[385843617,1758059482501,-704.61,0.00031232,6]
[385843618,1758059482511,-400.0,0.00031232,6]
[385843619,1758059482523,-400.0,0.00031232,6]
[385843620,1758059482533,-400.0,0.00031232,6]
[385843621,1758059482543,-400.0,0.00031232,6]
[385843622,1758059482552,-400.0,0.00031232,6]
[385843623,1758059482562,-400.0,0.00031232,6]
[385843624,1758059482572,-1172.18,0.00031232,6]
[385843625,1758059482581,-400.0,0.00031232,6]
[385843626,1758059482590,-400.0,0.00031232,6]
[385843627,1758059482600,-400.0,0.00031232,6]
[385843628,1758059482613,-5286.95,0.00031232,6]
[385843629,1758059482623,-154.03748229,0.00031232,6]
[385843630,1758059482632,-400.0,0.00031232,6]
[385843631,1758059482642,-400.0,0.00031232,6]
[385843632,1758059482651,-400.0,0.00031232,6]
[385843633,1758059482660,-400.0,0.00031232,6]
[385843634,1758059482669,-400.0,0.00031232,6]
[385843635,1758059482680,-542.4,0.00031232,6]
[385843636,1758059482689,-400.0,0.00031232,6]
[385843637,1758059482698,-400.0,0.00031232,6]
[385843638,1758059482708,-400.0,0.00031232,6]
[385843639,1758059482718,-400.0,0.00031232,6]
[385843640,1758059482727,-435.09,0.00031232,6]
[385843641,1758059482739,-267.79147591,0.00031232,6]
[385843642,1758059482749,-527.52,0.00031232,6]
[385843643,1758059482759,-400.0,0.00031232,6]
[385843644,1758059482769,-551.22,0.00031232,6]
[385843645,1758059482779,-405.98190064,0.00031232,6]
[385843646,1758059482791,-400.0,0.00031232,6]
[385843647,1758059482802,-400.0,0.00031232,6]
[385843648,1758059482811,-400.0,0.00031232,6]
[385843649,1758059482821,-400.0,0.00031232,6]
[385843650,1758059482831,-400.0,0.00031232,6]
[385843651,1758059482840,-400.0,0.00031232,6]
[385843652,1758059482851,-400.0,0.00031232,6]
[385843653,1758059482862,-400.0,0.00031232,6]
[385843654,1758059482871,-420.71990887,0.00031232,6]
[385843655,1758059482881,-400.0,0.00031232,6]
[385843656,1758059482892,-400.0,0.00031232,6]
[385843657,1758059482902,-483.09,0.00031232,6]
[385843658,1758059482912,-400.0,0.00031232,6]
[385843659,1758059482923,-400.0,0.00031232,6]
[385843660,1758059482933,-777.85,0.00031232,6]
[385843661,1758059482942,-400.0,0.00031232,6]
[385843662,1758059482951,-445.13,0.00031232,6]
[385843663,1758059482961,-510.44,0.00031232,6]
[385843664,1758059482974,-400.0,0.00031232,6]
[385843665,1758059482983,-400.0,0.00031232,6]
[385843666,1758059482998,-650.71,0.00031232,6]
[385843667,1758059483012,-400.0,0.00031232,6]
[385843668,1758059483022,-632.37,0.00031232,6]
[385843669,1758059483032,-400.0,0.00031232,6]
[385843670,1758059483042,-400.0,0.00031232,6]
[385843671,1758059483054,-400.0,0.00031232,6]
[385843672,1758059483063,-400.0,0.00031232,6]
[385843673,1758059483072,-400.0,0.00031232,6]
[385843674,1758059483081,-763.55,0.00031232,6]
[385843675,1758059483090,-400.0,0.00031232,6]
[385843676,1758059483100,-400.0,0.00031232,6]
[385843677,1758059483109,-400.0,0.00031232,6]
[385843678,1758059483299,-400.0,0.00031232,6]
[385843679,1758059483309,-400.0,0.00031232,6]
[385843680,1758059483318,-620.92,0.00031232,6]
[385843681,1758059483328,-701.89,0.00031232,6]
[385843682,1758059483338,-400.0,0.00031232,6]
[385843683,1758059483348,-400.0,0.00031232,6]
[385843684,1758059483357,-400.0,0.00031232,6]
[385843685,1758059483369,-500.0,0.00031232,6]
[385843686,1758059483378,-796.09,0.00031232,6]
[385843687,1758059483387,-400.0,0.00031232,6]
[385843688,1758059483399,-400.0,0.00031232,6]
[385843689,1758059483408,-400.0,0.00031232,6]
[385843690,1758059483418,-400.0,0.00031232,6]
[385843691,1758059483428,-400.0,0.00031232,6]
[385843692,1758059483439,-400.0,0.00031232,6]
[385843693,1758059483448,-400.0,0.00031232,6]
[385843694,1758059483458,-400.0,0.00031232,6]
[385843695,1758059483470,-400.0,0.00031232,6]
[385843696,1758059483480,-400.0,0.00031232,6]
[385843697,1758059483490,-416.10777114,0.00031232,6]
[385843698,1758059483500,-400.0,0.00031232,6]
[385843699,1758059483509,-400.0,0.00031232,6]
[385843700,1758059483520,-400.0,0.00031232,6]
[385843701,1758059483529,-745.62,0.00031232,6]
[385843702,1758059483538,-400.0,0.00031232,6]
[385843703,1758059483547,-400.0,0.00031232,6]
[385843704,1758059483557,-400.0,0.00031232,6]
[385843705,1758059483566,-400.0,0.00031232,6]
[385843706,1758059483574,-400.0,0.00031232,6]
[385843707,1758059483583,-629.24,0.00031232,6]
[385843708,1758059483592,-400.0,0.00031232,6]
[385843709,1758059483602,-400.0,0.00031232,6]
[385843710,1758059483611,-447.35,0.00031232,6]
[385843711,1758059483620,-400.0,0.00031232,6]
[385843712,1758059483629,-407.13160289,0.00031232,6]
[385843713,1758059483638,-936.1,0.00031232,6]
[385843714,1758059483647,-400.0,0.00031232,6]
[385843715,1758059483655,-400.0,0.00031232,6]
[385843716,1758059483664,-400.0,0.00031232,6]
[385843717,1758059483674,-400.0,0.00031232,6]
[385843718,1758059483683,-400.0,0.00031232,6]
[385843719,1758059483692,-400.0,0.00031232,6]
[385843720,1758059483701,-400.0,0.00031232,6]
[385843721,1758059483711,-400.0,0.00031232,6]
[385843722,1758059483720,-400.0,0.00031232,6]
[385843723,1758059483729,-400.0,0.00031232,6]
[385843724,1758059483739,-400.0,0.00031232,6]
[385843725,1758059483748,-400.0,0.00031232,6]
[385843726,1758059483758,-401.66854439,0.00031232,6]
[385843727,1758059483767,-400.0,0.00031232,6]
[385843728,1758059483777,-1215.29,0.00031232,6]
[385843729,1758059483787,-400.0,0.00031232,6]
[385843730,1758059483796,-400.0,0.00031232,6]
[385843731,1758059483807,-400.0,0.00031232,6]
[385843732,1758059483816,-400.0,0.00031232,6]
[385843733,1758059483826,-159.27056212,0.00031232,6]
[385843734,1758059483835,-400.0,0.00031232,6]
[385843735,1758059483845,-400.0,0.00031232,6]
[385843736,1758059483854,-400.0,0.00031232,6]
[385843737,1758059483866,-470.35,0.00031232,6]
[385843738,1758059483877,-400.0,0.00031232,6]
[385843739,1758059483889,-400.0,0.00031232,6]
[385843740,1758059483898,-400.0,0.00031232,6]
[385843741,1758059483908,-722.71,0.00031232,6]
[385843742,1758059483917,-400.0,0.00031232,6]
[385843743,1758059483926,-404.76624584,0.00031232,6]
[385843744,1758059483935,-656.3,0.00031232,6]
[385843745,1758059483944,-400.0,0.00031232,6]
[385843746,1758059483953,-400.0,0.00031232,6]
[385843747,1758059483962,-400.0,0.00031232,6]
[385843748,1758059483971,-1790.44,0.00031232,6]
[385843749,1758059483980,-400.0,0.00031232,6]
[385843750,1758059483989,-400.0,0.00031232,6]
[385843751,1758059483998,-400.0,0.00031232,6]
[385843752,1758059484007,-400.0,0.00031232,6]
[385843753,1758059484017,-1382.16,0.00031232,6]
[385843754,1758059484026,-400.0,0.00031232,6]
[385843755,1758059484035,-1005.55,0.00031232,6]
[385843756,1758059484044,-400.0,0.00031232,6]
[385843757,1758059484054,-429.26,0.00031232,6]
[385843758,1758059484063,-400.0,0.00031232,6]
[385843759,1758059484073,-400.0,0.00031232,6]
[385843760,1758059484082,-400.0,0.00031232,6]
[385843761,1758059484091,-400.0,0.00031232,6]
[385843762,1758059484101,-400.0,0.00031232,6]
[385843763,1758059484111,-400.0,0.00031232,6]
[385843764,1758059484123,-400.0,0.00031232,6]
[385843765,1758059484132,-400.0,0.00031232,6]
[385843766,1758059484141,-400.0,0.00031232,6]
[385843767,1758059484150,-400.0,0.00031232,6]
[385843768,1758059484159,-405.38887175,0.00031232,6]
[385843769,1758059484168,-400.0,0.00031232,6]
[385843770,1758059484178,-400.0,0.00031232,6]
[385843771,1758059484187,-400.0,0.00031232,6]
[385843772,1758059484195,-690.12,0.00031232,6]
[385843773,1758059484205,-671.41,0.00031232,6]
[385843774,1758059484213,-607.8,0.00031232,6]
[385843775,1758059484222,-400.0,0.00031232,6]
[385843776,1758059484231,-408.90648673,0.00031232,6]
[385843777,1758059484241,-400.0,0.00031232,6]
[385843778,1758059484252,-1101.76,0.00031232,6]
[385843779,1758059484261,-644.78,0.00031232,6]
[385843780,1758059484270,-400.0,0.00031232,6]
[385843781,1758059484280,-400.0,0.00031232,6]
[385843782,1758059484289,-400.0,0.00031232,6]
[385843783,1758059484298,-400.0,0.00031232,6]
[385843784,1758059484307,-400.0,0.00031232,6]
[385843785,1758059484316,-400.0,0.00031232,6]
[385843786,1758059484326,-783.19,0.00031232,6]
[385843787,1758059484335,-400.0,0.00031232,6]
[385843788,1758059484344,-201.21613573,0.00031232,6]
[385843789,1758059484354,-400.0,0.00031232,6]
[385843790,1758059484363,-400.0,0.00031232,6]
[385843791,1758059484372,-400.0,0.00031232,6]
[385843792,1758059484381,-400.0,0.00031232,6]
[385843793,1758059484391,-400.0,0.00031232,6]
[385843794,1758059484402,-467.3,0.00031232,6]
[385843795,1758059484411,-400.0,0.00031232,6]
[385843796,1758059484420,-450.16,0.00031232,6]
[385843797,1758059484430,-400.0,0.00031232,6]
[385843798,1758059484442,-400.0,0.00031232,6]
[385843799,1758059484451,-330.57847154,0.00031232,6]
[385843800,1758059484460,-540.10445716,0.00031232,6]
[385843801,1758059484470,-400.0,0.00031232,6]
[385843802,1758059484480,-400.0,0.00031232,6]
[385843803,1758059484489,-400.0,0.00031232,6]
[385843804,1758059484498,-1181.9,0.00031232,6]
[385843805,1758059484507,-400.0,0.00031232,6]
[385843806,1758059484516,-400.0,0.00031232,6]
[385843807,1758059484525,-400.0,0.00031232,6]
[385843808,1758059484534,-431.77,0.00031232,6]
[385843809,1758059484544,-400.0,0.00031232,6]
[385843810,1758059484557,-283.64107479,0.00031232,6]
[385843811,1758059484566,-400.0,0.00031232,6]
[385843812,1758059484575,-400.0,0.00031232,6]
[385843813,1758059484585,-1421.99,0.00031232,6]
[385843814,1758059484596,-400.0,0.00031232,6]
[385843815,1758059484607,-400.0,0.00031232,6]
[385843816,1758059484616,-604.53,0.00031232,6]
[385843817,1758059484627,-400.0,0.00031232,6]
[385843818,1758059484638,-417.22,0.00031232,6]
[385843819,1758059484647,-633.44,0.00031232,6]
[385843820,1758059484658,-400.0,0.00031232,6]
[385843821,1758059484667,-400.0,0.00031232,6]
[385843822,1758059484677,-400.0,0.00031232,6]
[385843823,1758059484688,-400.0,0.00031232,6]
[385843824,1758059484699,-400.0,0.00031232,6]
[385843825,1758059484711,-400.0,0.00031232,6]
[385843826,1758059484721,-400.0,0.00031232,6]
[385843827,1758059484730,-170.77,0.00031239,30]
[385843828,1758059484740,-1556.21254549,0.00031244,2]
[385843829,1758059484750,-168.0,0.00031286,2]
[385843830,1758059484760,-400.0,0.00031294,6]
[385843831,1758059484771,-400.0,0.00031294,6]
[385843832,1758059484781,-400.0,0.00031294,6]
[385843833,1758059484792,-400.0,0.00031294,6]
[385843834,1758059484802,-892.92,0.00031294,6]
[385843835,1758059484812,-400.0,0.00031294,6]
[385843836,1758059484822,-568.06,0.00031294,6]
[385843837,1758059484833,-1072.67,0.00031294,6]
[385843838,1758059484843,-512.55,0.00031294,6]
[385843839,1758059484852,-774.02,0.00031294,5]
[385843840,1758059484862,-400.0,0.00031294,6]
[385843841,1758059484871,-400.0,0.00031294,6]
[385843842,1758059484881,-400.0,0.00031294,6]